fUSD/lending_fUSD_20250116
["ID","MTS","AMOUNT","RATE_DAILY","PERIOD"]
[349225855,1737045091300,-1421.94,0.00039264,18]
[349225856,1737045091309,-500.0,0.00039264,18]
[349225857,1737045091319,-689.55,0.00039264,18]
[349225858,1737045091331,-993.49,0.00039264,18]
[349225859,1737045091341,-622.38,0.00039264,18]
[349225860,1737045091351,-500.0,0.00039264,18]
[349225861,1737045091360,-500.0,0.00039264,18]
[349225862,1737045091371,-799.33,0.00039264,18]
[349225863,1737045091380,-2649.98,0.00039264,18]
[349225864,1737045091391,-500.0,0.00039264,18]
[349225865,1737045091401,-500.0,0.00039264,18]
[349225866,1737045091411,-500.0,0.00039264,18]
[349225867,1737045091422,-14966.05,0.00039264,18]
[349225868,1737045091433,-500.0,0.00039264,18]
[349225869,1737045091442,-500.0,0.00039264,18]
[349225870,1737045091452,-1105.04,0.00039264,18]
[349225871,1737045091461,-500.0,0.00039264,18]
[349225872,1737045091472,-500.0,0.00039264,18]
[349225873,1737045091482,-838.88,0.00039264,18]
[349225874,1737045091495,-1573.64,0.00039264,18]
[349225875,1737045091507,-500.0,0.00039264,18]
[349225876,1737045091517,-1244.55129349,0.00039265,120]
[349225877,1737045091526,-1244.55129349,0.00039265,120]
[349225878,1737045091536,-1244.55129349,0.00039265,120]
[349225879,1737045091547,-1244.55129349,0.00039265,120]
[349225880,1737045091556,-1244.55129349,0.00039265,120]
[349225881,1737045091566,-1244.55129349,0.00039265,120]
[349225882,1737045091575,-1244.55129349,0.00039265,120]
[349225883,1737045091585,-1244.55129349,0.00039265,120]
[349225884,1737045091595,-1244.55129349,0.00039265,120]
[349225885,1737045091753,-1244.55129349,0.00039265,120]
[349225886,1737045091762,-1244.55129349,0.00039265,120]
[349225887,1737045091772,-1244.55129349,0.00039265,120]
[349225888,1737045091783,-1244.55129349,0.00039265,120]
[349225889,1737045091793,-1244.55129349,0.00039265,120]
[349225890,1737045091802,-1244.55129349,0.00039265,120]
[349225891,1737045091811,-1244.55129349,0.00039265,120]
[349225892,1737045091820,-1244.55129349,0.00039265,120]
[349225893,1737045091829,-1244.55129349,0.00039265,120]
[349225894,1737045091839,-1244.55129349,0.00039265,120]
[349225895,1737045091848,-1244.55,0.00039265,120]
[349225896,1737045091858,-2903.95301814,0.00039265,120]
[349225897,1737045091868,-2903.95301814,0.00039265,120]
[349225898,1737045091877,-2903.95301814,0.00039265,120]
[349225899,1737045091887,-2903.95301814,0.00039265,120]
[349225900,1737045091897,-2903.95301814,0.00039265,120]
[349225901,1737045091907,-2903.95301814,0.00039265,120]
[349225902,1737045091917,-2903.95301814,0.00039265,120]
[349225903,1737045091927,-2903.95301814,0.00039265,120]
[349225904,1737045091937,-2903.95301814,0.00039265,120]
[349225905,1737045091947,-2903.95301814,0.00039265,120]
[349225906,1737045091957,-2903.95301814,0.00039265,120]
[349225907,1737045091967,-2903.95301814,0.00039265,120]
[349225908,1737045091976,-2903.95301814,0.00039265,120]
[349225909,1737045091988,-2903.95301814,0.00039265,120]
[349225910,1737045091998,-2903.95301814,0.00039265,120]
[349225911,1737045092007,-2903.95301814,0.00039265,120]
[349225912,1737045092017,-2903.95301814,0.00039265,120]
[349225913,1737045092027,-2903.95301814,0.00039265,120]
[349225914,1737045092036,-2903.95301814,0.00039265,120]
[349225915,1737045092046,-2903.95,0.00039265,120]
[349225916,1737045092055,-283.14590323,0.00039265,2]
[349225917,1737045092065,-152.17950909,0.00039265,12]
[349225918,1737045092075,-185.55550232,0.00039265,2]
[349225919,1737045092085,-500.0,0.0003927,18]
[349225920,1737045092095,-500.0,0.0003927,18]
[349225921,1737045092105,-334.07125459,0.0003927,18]
[349225922,1737045092115,-500.0,0.0003927,18]
[349225923,1737045092126,-500.0,0.0003927,18]
[349225924,1737045092135,-500.0,0.0003927,18]
[349225925,1737045092146,-500.0,0.0003927,18]
[349225926,1737045092156,-507.50834352,0.0003927,18]
[349225927,1737045092167,-500.0,0.0003927,18]
[349225928,1737045092178,-500.0,0.0003927,18]
[349225929,1737045092188,-151.0,0.0003927,14]
[349225930,1737045092198,-500.0,0.0003927,18]
[349225931,1737045092209,-500.0,0.0003927,18]
[349225932,1737045092219,-739.57,0.0003927,18]
[349225933,1737045092230,-500.0,0.0003927,18]
[349225934,1737045092243,-949.97,0.0003927,18]
[349225935,1737045092254,-500.0,0.0003927,18]
[349225936,1737045092265,-500.0,0.0003927,18]
[349225937,1737045092276,-500.0,0.0003927,18]
[349225938,1737045092287,-2011.16,0.0003927,18]
[349225939,1737045092296,-500.0,0.0003927,18]
[349225940,1737045092306,-500.0,0.0003927,18]
[349225941,1737045092316,-500.0,0.0003927,18]
[349225942,1737045092329,-975.9,0.0003927,18]
[349225943,1737045092346,-500.0,0.0003927,18]
[349225944,1737045092356,-500.0,0.0003927,18]
[349225945,1737045092365,-2211.47,0.0003927,18]
[349225946,1737045092376,-500.0,0.0003927,18]
[349225947,1737045092386,-1059.2,0.0003927,18]
[349225948,1737045092396,-500.0,0.0003927,18]
[349225949,1737045092407,-500.0,0.0003927,18]
[349225950,1737045092427,-823.49,0.0003927,18]
[349225951,1737045092437,-500.0,0.0003927,18]
[349225952,1737045092447,-500.0,0.0003927,18]
[349225953,1737045092457,-500.0,0.00039271,18]
[349225954,1737045092467,-150.0,0.00039271,18]
[349225955,1737045092477,-150.67239099,0.00039271,18]
[349225956,1737045092489,-150.0,0.00039271,18]
[349225957,1737045092499,-653.59609886,0.00039271,18]
[349225958,1737045092509,-1315.0,0.00039271,18]
[349225959,1737045092520,-500.0,0.00039273,5]
[349225960,1737045092530,-272.05607507,0.00039282,7]
[349225961,1737045092540,-154.75773865,0.00039282,7]
[349225962,1737045092550,-365.7260478,0.00039283,2]
[349225963,1737045092559,-3313.3778182,0.00039283,2]
[349225964,1737045092569,-827.68,0.00039284,18]
[349225965,1737045092580,-735.66,0.00039284,18]
[349225966,1737045092590,-2493.82,0.00039284,18]
[349225967,1737045092599,-603.99,0.00039284,18]
[349225968,1737045092609,-427.563462,0.00039284,18]
[349225969,1737045092618,-500.0,0.00039284,18]
[349225970,1737045092629,-2372.58,0.00039284,18]
[349225971,1737045092639,-396.040197,0.00039284,18]
[349225972,1737045092649,-749.49,0.00039284,18]
[349225973,1737045092660,-1138.81,0.00039284,18]
[349225974,1737045092670,-1585.54,0.00039284,18]
[349225975,1737045092680,-500.0,0.00039289,18]
[349225976,1737045092691,-500.0,0.00039289,18]
[349225977,1737045092701,-471.96,0.00039289,18]
[349225978,1737045092711,-500.0,0.00039289,18]
[349225979,1737045092722,-500.0,0.00039289,18]
[349225980,1737045092733,-500.0,0.00039289,18]
[349225981,1737045092744,-500.0,0.00039289,18]
[349225982,1737045092754,-500.0,0.00039289,18]
[349225983,1737045092764,-500.0,0.00039289,18]
[349225984,1737045092775,-442.33,0.00039289,18]
[349225985,1737045092786,-500.0,0.00039289,18]
[349225986,1737045092797,-1668.95,0.00039289,18]
[349225987,1737045092807,-508.76,0.00039289,18]
[349225988,1737045092816,-611.58,0.00039289,18]
[349225989,1737045092826,-782.93,0.00039289,18]
[349225990,1737045092836,-1330.52,0.00039289,18]
[349225991,1737045092845,-1240.22,0.00039289,18]
[349225992,1737045092855,-500.0,0.00039296,18]
[349225993,1737045092864,-562.78110493,0.00039298,18]
[349225994,1737045092873,-486.29728453,0.00039298,18]
[349225995,1737045092883,-500.0,0.00039298,18]
[349225996,1737045092893,-150.0,0.00039298,18]
[349225997,1737045092903,-150.0,0.00039298,18]
[349225998,1737045092914,-1315.0,0.00039298,18]
[349225999,1737045092923,-6665.90480237,0.000393,120]
[349226000,1737045092933,-6000.0,0.000393,60]
[349226001,1737045092943,-2000.0,0.000393,39]
[349226002,1737045092953,-2000.0,0.000393,39]
[349226003,1737045092963,-5050.0,0.000393,34]
[349226004,1737045092972,-151.0,0.000393,14]
[349226005,1737045092982,-2724.224126,0.0003931,39]
[349226006,1737045092997,-2099.306002,0.0003931,39]
[349226007,1737045093007,-500.0,0.00039311,18]
[349226008,1737045093018,-444.82,0.00039311,18]
[349226009,1737045093028,-500.0,0.00039311,18]
[349226010,1737045093039,-500.0,0.00039311,18]
[349226011,1737045093050,-500.0,0.00039311,18]
[349226012,1737045093061,-500.0,0.00039311,18]
[349226013,1737045093071,-500.0,0.00039311,18]
[349226014,1737045093081,-500.0,0.00039311,18]
[349226015,1737045093091,-500.0,0.00039311,18]
[349226016,1737045093103,-1668.95,0.00039311,18]
[349226017,1737045093116,-508.76,0.00039311,18]
[349226018,1737045093127,-611.58,0.00039311,18]
[349226019,1737045093139,-782.93,0.00039311,18]
[349226020,1737045093151,-155.555975,0.00039311,14]
[349226021,1737045093162,-155.555975,0.00039311,14]
[349226022,1737045093175,-1330.52,0.00039311,18]
[349226023,1737045093187,-1240.22,0.00039311,18]
[349226024,1737045093198,-4048.82,0.0003932,60]
[349226025,1737045093210,-525.37,0.00039323,18]
[349226026,1737045093221,-500.0,0.00039326,18]
[349226027,1737045093233,-201.76850108,0.00039326,18]
[349226028,1737045093248,-201.50823123,0.00039326,18]
[349226029,1737045093258,-1315.0,0.00039326,18]
[349226030,1737045093269,-272.05607507,0.00039326,7]
[349226031,1737045093279,-154.75773865,0.00039326,7]
[349226032,1737045093290,-500.0,0.00039329,18]
[349226033,1737045093301,-500.0,0.00039329,18]
[349226034,1737045093312,-329.14,0.00039329,18]
[349226035,1737045093324,-314.575351,0.00039329,14]
[349226036,1737045093336,-314.575351,0.00039329,14]
[349226037,1737045093350,-567.37,0.00039329,18]
[349226038,1737045093361,-500.0,0.00039329,18]
[349226039,1737045093372,-500.0,0.00039329,18]
[349226040,1737045093383,-500.0,0.00039329,18]
[349226041,1737045093393,-500.0,0.00039329,18]
[349226042,1737045093404,-1668.95,0.00039329,18]
[349226043,1737045093414,-508.76,0.00039329,18]
[349226044,1737045093426,-611.58,0.00039329,18]
[349226045,1737045093436,-782.93,0.00039329,18]
[349226046,1737045093446,-1330.52,0.00039329,18]
[349226047,1737045093456,-1240.22,0.00039329,18]
[349226048,1737045093467,-351.9450663,0.00039338,2]
[349226049,1737045093478,-338.1640848,0.00039338,2]
[349226050,1737045093491,-324.3831033,0.00039338,2]
[349226051,1737045093501,-595.1801084,0.00039338,2]
[349226052,1737045093512,-571.8748632,0.00039338,2]
[349226053,1737045093522,-548.5696179,0.00039338,2]
[349226054,1737045093531,-8754.6367829,0.00039338,2]
[349226055,1737045093540,-8434.2644706,0.00039338,2]
[349226056,1737045093550,-8113.8921582,0.00039338,2]
[349226057,1737045093560,-279.4066854,0.00039338,2]
[349226058,1737045093570,-269.1819133,0.00039338,2]
[349226059,1737045093580,-258.9571412,0.00039338,2]
[349226060,1737045093589,-3196.4066392,0.00039338,2]
[349226061,1737045093598,-3079.4354602,0.00039338,2]
[349226062,1737045093606,-2962.4642812,0.00039338,2]
[349226063,1737045093615,-150.0,0.00039339,7]
[349226064,1737045093625,-241.84734729,0.0003934,31]
[349226065,1737045093635,-500.0,0.0003934,18]
[349226066,1737045093644,-500.0,0.0003934,18]
[349226067,1737045093654,-500.0,0.0003934,18]
[349226068,1737045093664,-1477.65,0.0003934,18]
[349226069,1737045093675,-500.0,0.0003934,18]
[349226070,1737045093684,-500.0,0.0003934,18]
[349226071,1737045093694,-500.0,0.0003934,18]
[349226072,1737045093705,-500.0,0.0003934,18]
[349226073,1737045093715,-500.0,0.0003934,18]
[349226074,1737045093725,-677.49,0.0003934,18]
[349226075,1737045093735,-500.0,0.0003934,18]
[349226076,1737045093747,-500.0,0.0003934,18]
[349226077,1737045093758,-500.0,0.0003934,18]
[349226078,1737045093770,-289.89507928,0.0003934,18]
[349226079,1737045093780,-500.0,0.0003934,18]
[349226080,1737045093790,-500.0,0.0003934,18]
[349226081,1737045093800,-500.0,0.0003934,18]
[349226082,1737045093810,-500.0,0.0003934,18]
[349226083,1737045093820,-500.0,0.0003934,18]
[349226084,1737045093830,-500.0,0.0003934,18]
[349226085,1737045093839,-500.0,0.0003934,18]
[349226086,1737045093850,-500.0,0.0003934,18]
[349226087,1737045093860,-500.0,0.0003934,18]
[349226088,1737045093870,-1524.91,0.0003934,18]
[349226089,1737045093880,-767.71,0.0003934,18]
[349226090,1737045093890,-500.0,0.0003934,18]
[349226091,1737045093900,-889.8,0.0003934,18]
[349226092,1737045093910,-500.0,0.0003934,18]
[349226093,1737045093920,-500.0,0.0003934,18]
[349226094,1737045093929,-500.0,0.0003934,18]
[349226095,1737045093939,-569.05,0.0003934,18]
[349226096,1737045093949,-560.12,0.0003934,18]
[349226097,1737045093960,-1585.2,0.0003934,2]
[349226098,1737045093971,-1378.01,0.0003934,18]
[349226099,1737045093980,-500.0,0.0003934,18]
[349226100,1737045093993,-973.1,0.0003934,18]
[349226101,1737045094003,-1072.37,0.0003934,18]
[349226102,1737045094013,-738.66,0.0003934,18]
[349226103,1737045094024,-500.0,0.0003934,18]
[349226104,1737045094034,-1487.87,0.0003934,18]
[349226105,1737045094044,-735.25,0.0003934,18]
[349226106,1737045094053,-500.0,0.0003934,18]
[349226107,1737045094063,-726.46,0.0003934,18]
[349226108,1737045094072,-1840.43,0.0003934,18]
[349226109,1737045094082,-500.0,0.0003934,18]
[349226110,1737045094091,-500.0,0.0003934,18]
[349226111,1737045094101,-500.0,0.0003934,18]
[349226112,1737045094110,-1421.94,0.0003934,18]
[349226113,1737045094120,-500.0,0.0003934,18]
[349226114,1737045094129,-689.55,0.0003934,18]
[349226115,1737045094139,-993.49,0.0003934,18]
[349226116,1737045094149,-2649.98,0.0003934,18]
[349226117,1737045094159,-500.0,0.0003934,18]
[349226118,1737045094170,-500.0,0.0003934,18]
[349226119,1737045094180,-500.0,0.0003934,18]
[349226120,1737045094190,-1105.04,0.0003934,18]
[349226121,1737045094200,-500.0,0.0003934,18]
[349226122,1737045094209,-500.0,0.0003934,18]
[349226123,1737045094219,-838.88,0.0003934,18]
[349226124,1737045094229,-1573.64,0.0003934,18]
[349226125,1737045094240,-500.0,0.00039341,18]
[349226126,1737045094250,-500.0,0.00039341,18]
[349226127,1737045094260,-500.0,0.00039341,18]
[349226128,1737045094269,-500.0,0.00039341,18]
[349226129,1737045094279,-500.0,0.00039341,18]
[349226130,1737045094290,-500.0,0.00039341,18]
[349226131,1737045094300,-1668.95,0.00039341,18]
[349226132,1737045094310,-508.76,0.00039341,18]
[349226133,1737045094320,-611.58,0.00039341,18]
[349226134,1737045094333,-782.93,0.00039341,18]
[349226135,1737045094343,-1330.52,0.00039341,18]
[349226136,1737045094353,-1240.22,0.00039341,18]
[349226137,1737045094362,-827.68,0.00039346,18]
[349226138,1737045094373,-735.66,0.00039346,18]
[349226139,1737045094382,-2493.82,0.00039346,18]
[349226140,1737045094392,-603.99,0.00039346,18]
[349226141,1737045094404,-427.563462,0.00039346,18]
[349226142,1737045094413,-500.0,0.00039346,18]
[349226143,1737045094423,-2372.58,0.00039346,18]
[349226144,1737045094640,-396.040197,0.00039346,18]
[349226145,1737045094651,-749.49,0.00039346,18]
[349226146,1737045094661,-1138.81,0.00039346,18]
[349226147,1737045094671,-1585.54,0.00039346,18]
[349226148,1737045094681,-500.0,0.00039353,18]
[349226149,1737045094691,-1315.0,0.00039353,18]
[349226150,1737045094701,-500.0,0.00039355,18]
[349226151,1737045094711,-500.0,0.00039355,18]
[349226152,1737045094720,-500.0,0.00039355,18]
[349226153,1737045094729,-500.0,0.00039355,18]
[349226154,1737045094741,-500.0,0.00039355,18]
[349226155,1737045094751,-500.0,0.00039355,18]
[349226156,1737045094760,-500.0,0.00039355,18]
[349226157,1737045094770,-500.0,0.00039355,18]
[349226158,1737045094778,-500.0,0.00039355,18]
[349226159,1737045094788,-739.57,0.00039355,18]
[349226160,1737045094797,-500.0,0.00039355,18]
[349226161,1737045094807,-949.97,0.00039355,18]
[349226162,1737045094816,-500.0,0.00039355,18]
[349226163,1737045094826,-500.0,0.00039355,18]
[349226164,1737045094835,-224.49,0.00039355,18]
[349226165,1737045094845,-2011.16,0.00039355,18]
[349226166,1737045094856,-500.0,0.00039355,18]
[349226167,1737045094866,-500.0,0.00039355,18]
[349226168,1737045094876,-500.0,0.00039355,18]
[349226169,1737045094885,-975.9,0.00039355,18]
[349226170,1737045094895,-500.0,0.00039355,18]
[349226171,1737045094904,-500.0,0.00039355,18]
[349226172,1737045094914,-2211.47,0.00039355,18]
[349226173,1737045094923,-500.0,0.00039355,18]
[349226174,1737045094932,-1059.2,0.00039355,18]
[349226175,1737045094942,-355.78836594,0.00039355,18]
[349226176,1737045094951,-823.49,0.00039355,18]
[349226177,1737045094961,-500.0,0.00039356,18]
[349226178,1737045094970,-314.66,0.00039356,18]
[349226179,1737045094980,-500.0,0.00039356,18]
[349226180,1737045094992,-500.0,0.00039356,18]
[349226181,1737045095001,-500.0,0.00039356,18]
[349226182,1737045095011,-500.0,0.00039356,18]
[349226183,1737045095020,-1668.95,0.00039356,18]
[349226184,1737045095029,-508.76,0.00039356,18]
[349226185,1737045095038,-611.58,0.00039356,18]
[349226186,1737045095048,-782.93,0.00039356,18]
[349226187,1737045095059,-1330.52,0.00039356,18]
[349226188,1737045095069,-1240.22,0.00039356,18]
[349226189,1737045095079,-500.0,0.00039361,18]
[349226190,1737045095215,-833.27,0.00039361,18]
[349226191,1737045095226,-500.0,0.00039361,18]
[349226192,1737045095238,-500.0,0.00039361,18]
[349226193,1737045095248,-500.0,0.00039361,18]
[349226194,1737045095258,-524.59,0.00039361,18]
[349226195,1737045095268,-500.0,0.00039361,18]
[349226196,1737045095277,-563.55,0.00039361,18]
[349226197,1737045095287,-590.68,0.00039361,18]
[349226198,1737045095297,-622.38,0.00039361,18]
[349226199,1737045095306,-799.33,0.00039361,18]
[349226200,1737045095316,-151.0,0.00039361,14]
[349226201,1737045095326,-14966.05,0.00039361,18]
[349226202,1737045095338,-500.0,0.00039362,18]
[349226203,1737045095348,-542.86631679,0.00039362,18]
[349226204,1737045095358,-500.0,0.00039362,18]
[349226205,1737045095368,-500.0,0.00039362,18]
[349226206,1737045095379,-500.0,0.00039362,18]
[349226207,1737045095388,-539.55,0.00039362,18]
[349226208,1737045095397,-413.91137733,0.00039362,18]
[349226209,1737045095407,-500.0,0.00039362,18]
[349226210,1737045095418,-500.0,0.00039362,18]
[349226211,1737045095428,-500.0,0.00039362,18]
[349226212,1737045095437,-322.66224085,0.00039362,18]
[349226213,1737045095447,-500.0,0.00039362,18]
[349226214,1737045095457,-238.27,0.00039362,18]
[349226215,1737045095467,-274.4,0.00039362,18]
[349226216,1737045095477,-500.0,0.00039362,18]
[349226217,1737045095486,-349.04,0.00039362,18]
[349226218,1737045095498,-1477.65,0.00039362,18]
[349226219,1737045095508,-1477.65,0.00039362,18]
[349226220,1737045095518,-576.78,0.00039362,18]
[349226221,1737045095528,-500.0,0.00039362,18]
[349226222,1737045095537,-500.0,0.00039362,18]
[349226223,1737045095547,-513.96057481,0.00039362,18]
[349226224,1737045095557,-500.0,0.00039362,18]
[349226225,1737045095567,-500.0,0.00039362,18]
[349226226,1737045095577,-500.0,0.00039362,18]
[349226227,1737045095587,-500.0,0.00039362,18]
[349226228,1737045095597,-500.0,0.00039362,18]
[349226229,1737045095607,-500.0,0.00039362,18]
[349226230,1737045095616,-500.0,0.00039362,18]
[349226231,1737045095625,-500.0,0.00039362,18]
[349226232,1737045095635,-677.49,0.00039362,18]
[349226233,1737045095645,-677.49,0.00039362,18]
[349226234,1737045095655,-500.0,0.00039362,18]
[349226235,1737045095665,-500.0,0.00039362,18]
[349226236,1737045095674,-500.0,0.00039362,18]
[349226237,1737045095684,-500.0,0.00039362,18]
[349226238,1737045095694,-500.0,0.00039362,18]
[349226239,1737045095704,-500.0,0.00039362,18]
[349226240,1737045095713,-500.0,0.00039362,18]
[349226241,1737045095722,-500.0,0.00039362,18]
[349226242,1737045095733,-500.0,0.00039362,18]
[349226243,1737045095744,-500.0,0.00039362,18]
[349226244,1737045095754,-500.0,0.00039362,18]
[349226245,1737045095764,-500.0,0.00039362,18]
[349226246,1737045095773,-500.0,0.00039362,18]
[349226247,1737045095783,-269.09,0.00039362,18]
[349226248,1737045095792,-500.0,0.00039362,18]
[349226249,1737045095802,-500.0,0.00039362,18]
[349226250,1737045095813,-500.0,0.00039362,18]
[349226251,1737045095825,-500.0,0.00039362,18]
[349226252,1737045095835,-500.0,0.00039362,18]
[349226253,1737045095845,-297.52,0.00039362,18]
[349226254,1737045095855,-500.0,0.00039362,18]
[349226255,1737045095864,-300.0,0.00039362,10]
[349226256,1737045095876,-402.59,0.00039362,18]
[349226257,1737045095886,-500.0,0.00039362,18]
[349226258,1737045095896,-500.0,0.00039362,18]
[349226259,1737045095906,-500.0,0.00039362,18]
[349226260,1737045095915,-500.0,0.00039362,18]
[349226261,1737045095925,-500.0,0.00039362,18]
[349226262,1737045095934,-500.0,0.00039362,18]
[349226263,1737045095944,-179.12,0.00039362,18]
[349226264,1737045095953,-833.27,0.00039362,18]
[349226265,1737045095963,-500.0,0.00039362,18]
[349226266,1737045095972,-500.0,0.00039362,18]
[349226267,1737045095982,-500.0,0.00039362,18]
[349226268,1737045095992,-500.0,0.00039362,18]
[349226269,1737045096002,-500.0,0.00039362,18]
[349226270,1737045096011,-500.0,0.00039362,18]
[349226271,1737045096020,-500.0,0.00039362,18]
[349226272,1737045096031,-1524.91,0.00039362,18]
[349226273,1737045096040,-1524.91,0.00039362,18]
[349226274,1737045096050,-767.71,0.00039362,18]
[349226275,1737045096060,-767.71,0.00039362,18]
[349226276,1737045096069,-500.0,0.00039362,18]
[349226277,1737045096079,-500.0,0.00039362,18]
[349226278,1737045096088,-500.0,0.00039362,18]
[349226279,1737045096098,-287.46037352,0.00039362,18]
[349226280,1737045096108,-889.8,0.00039362,18]
[349226281,1737045096117,-889.8,0.00039362,18]
[349226282,1737045096127,-500.0,0.00039362,18]
[349226283,1737045096136,-500.0,0.00039362,18]
[349226284,1737045096146,-500.0,0.00039362,18]
[349226285,1737045096156,-1668.95,0.00039362,18]
[349226286,1737045096165,-1668.95,0.00039362,18]
[349226287,1737045096174,-1668.95,0.00039362,18]
[349226288,1737045096184,-1668.95,0.00039362,18]
[349226289,1737045096193,-464.84,0.00039362,18]
[349226290,1737045096203,-1668.95,0.00039362,18]
[349226291,1737045096213,-500.0,0.00039362,18]
[349226292,1737045096223,-500.0,0.00039362,18]
[349226293,1737045096232,-1669.10868661,0.00039362,18]
[349226294,1737045096244,-500.0,0.00039362,18]
[349226295,1737045096254,-500.0,0.00039362,18]
[349226296,1737045096263,-500.0,0.00039362,18]
[349226297,1737045096273,-500.0,0.00039362,18]
[349226298,1737045096282,-569.05,0.00039362,18]
[349226299,1737045096292,-569.05,0.00039362,18]
[349226300,1737045096301,-827.68,0.00039362,18]
[349226301,1737045096313,-827.68,0.00039362,18]
[349226302,1737045096323,-827.68,0.00039362,18]
[349226303,1737045096332,-560.12,0.00039362,18]
[349226304,1737045096347,-560.12,0.00039362,18]
[349226305,1737045096357,-560.12,0.00039362,18]
[349226306,1737045096367,-500.0,0.00039362,18]
[349226307,1737045096376,-500.0,0.00039362,18]
[349226308,1737045096386,-151.0,0.00039362,14]
[349226309,1737045096396,-739.57,0.00039362,18]
[349226310,1737045096406,-739.57,0.00039362,18]
[349226311,1737045096417,-508.76,0.00039362,18]
[349226312,1737045096427,-508.76,0.00039362,18]
[349226313,1737045096436,-508.76,0.00039362,18]
[349226314,1737045096445,-508.76,0.00039362,18]
[349226315,1737045096454,-500.0,0.00039362,18]
[349226316,1737045096462,-508.76,0.00039362,18]
[349226317,1737045096471,-735.66,0.00039362,18]
[349226318,1737045096479,-508.92,0.00039362,18]
[349226319,1737045096489,-500.0,0.00039362,18]
[349226320,1737045096498,-735.66,0.00039362,18]
[349226321,1737045096507,-735.66,0.00039362,18]
[349226322,1737045096516,-1585.2,0.00039362,2]
[349226323,1737045096524,-1585.2,0.00039362,2]
[349226324,1737045096532,-1585.2,0.00039362,2]
[349226325,1737045096540,-1378.01,0.00039362,18]
[349226326,1737045096548,-1378.01,0.00039362,18]
[349226327,1737045096556,-500.0,0.00039362,18]
[349226328,1737045096564,-500.0,0.00039362,18]
[349226329,1737045096573,-949.97,0.00039362,18]
[349226330,1737045096581,-949.97,0.00039362,18]
[349226331,1737045096590,-973.1,0.00039362,18]
[349226332,1737045096599,-973.1,0.00039362,18]
[349226333,1737045096607,-973.1,0.00039362,18]
[349226334,1737045096614,-500.0,0.00039362,18]
[349226335,1737045096622,-500.0,0.00039362,18]
[349226336,1737045096629,-2493.82,0.00039362,18]
[349226337,1737045096637,-2493.82,0.00039362,18]
[349226338,1737045096645,-611.58,0.00039362,18]
[349226339,1737045096653,-2493.82,0.00039362,18]
[349226340,1737045096661,-611.58,0.00039362,18]
[349226341,1737045096669,-611.58,0.00039362,18]
[349226342,1737045096676,-611.58,0.00039362,18]
[349226343,1737045096685,-611.58,0.00039362,18]
[349226344,1737045096696,-524.59,0.00039362,18]
[349226345,1737045096705,-611.73,0.00039362,18]
[349226346,1737045096714,-1072.37,0.00039362,18]
[349226347,1737045096725,-1072.37,0.00039362,18]
[349226348,1737045096734,-738.66,0.00039362,18]
[349226349,1737045096747,-738.66,0.00039362,18]
[349226350,1737045096757,-738.66,0.00039362,18]
[349226351,1737045096766,-500.0,0.00039362,18]
[349226352,1737045096776,-500.0,0.00039362,18]
[349226353,1737045096785,-500.0,0.00039362,18]
[349226354,1737045096795,-500.0,0.00039362,18]